Cogmind - Beta 13 *** ADVENTURER MODE // 2024.04.10 @ 03:58:38 Player: brx Result: Destroyed by Y-45 Defender with Beam Rifle Performance ------------- Evolutions (1) 500 Regions Visited (2) 400 Robots Destroyed (16) 80 Value Destroyed (359) 359 Prototype IDs (0) 0 Alien Tech Used (0) 0 Bonus (0) 0 TOTAL SCORE: 1339 Bonus ------- None Cogmind --------- Core Integrity 0/400 Matter 191/300 Energy 100/100 System Corruption 0% Temperature Cool (27) Movement Core (100) Ox1 Location -9/Materials Parts ------- > --- POWER (1) -------- (None) > --- PROPULSION (2) --- (None) > --- UTILITY (4) ------ Small Storage Unit Visual Processing Unit > --- WEAPON (2) ------- (None) > --- INVENTORY (8) ---- Nuclear Core Nuclear Core Light Treads Light Treads Beam Cannon Particle Cannon Heavy Particle Cannon Peak State ------------ > --- POWER ------------ Nuclear Core > --- PROPULSION ------- Improved Treads Improved Treads > --- UTILITY ---------- Small Storage Unit Visual Processing Unit Sensor Array > --- WEAPON ----------- Particle Cannon Heavy Particle Cannon > --- INVENTORY -------- Nuclear Core Nuclear Core Nuclear Core Beam Cannon Heavy Particle Cannon Light Assault Rifle [Rating: 17] Favorites ----------- Power Ion Engine Engine Ion Engine Power Core Nuclear Core Propulsion Compact Wheel Treads Improved Treads Wheel Compact Wheel Utility Small Storage Unit Device Sensor Array Storage Small Storage Unit Processor Visual Processing Unit Weapon Assault Rifle Energy Cannon Heavy Particle Cannon Ballistic Gun Assault Rifle Build | -11 -10 -9 ------- Run | Yrd Mat Mat Slots Evolved 2 | . . 2 Power . | . . . Propulsion . | . . . Utility 2 | . . 2 Weapon . | . . . Parts Attached 22 | 7 1 14 Power 4 | 2 . 2 Engine 2 | 2 . . Core 2 | . . 2 Reactor . | . . . Propulsion 4 | 2 . 2 Treads 2 | . . 2 Leg . | . . . Wheel 2 | 2 . . Hover . | . . . Flight . | . . . Utility 4 | 1 1 2 Device 2 | . 1 1 Storage 1 | 1 . . Processor 1 | . . 1 Hackware . | . . . Protection . | . . . Artifact . | . . . Weapon 10 | 2 . 8 Energy Gun . | . . . Energy Cannon 5 | . . 5 Ballistic Gun 5 | 2 . 3 Ballistic Cannon . | . . . Launcher . | . . . Special Weapon . | . . . Impact Weapon . | . . . Slashing Weapon . | . . . Piercing Weapon . | . . . Special Melee Weapon . | . . . Unidentified Prototypes . | . . . Parts Lost 10 | . . 10 Power 2 | . . 2 Propulsion 3 | . . 3 Utility 1 | . . 1 Weapon 4 | . . 4 Highest Loss Streak 8 | . . 8 To Critical Strikes . | . . . Average Slot Usage (%) 77 | . 87 71 Engine 6 | . 14 2 Core 4 | . . 6 Treads 3 | . . 5 Wheel 15 | . 28 7 Device 5 | . 2 8 Storage 12 | . 14 11 Processor 7 | . . 11 Energy Cannon 3 | . . 5 Ballistic Gun 19 | . 28 14 Naked Turns . | . . . Heaviest Build 22 | 13 14 22 Greatest Support 46 | 26 26 46 Greatest Overweight (x) 6 | . . 6 Average Overweight (x) . | . . . Largest Inventory Capacity 8 | 8 8 8 Average Capacity 7 | 6 8 8 Most Carried 8 | 1 3 8 Average Carried 3 | . 1 4 Final Capacity 8 | 8 8 8 Final Carried 7 | 1 2 7 Class Distribution -------------------- 100% | Mutant Dominant Class ---------------- Mutant | -10/Materials Mutant | -9/Materials Resources | -11 -10 -9 ----------- Run | Yrd Mat Mat Matter Collected 476 | 255 63 158 Remotely . | . . . Salvage Created 471 | . 99 372 Parts 37 | . 16 21 Haulers Intercepted . | . . . Recyclers Shooed . | . . . Parts Field Recycled . | . . . Retrieved Matter . | . . . Parts Self-Destructed . | . . . Prevented . | . . . Kills | -11 -10 -9 ------- Run | Yrd Mat Mat Combat Hostiles Destroyed 11 | . 5 6 Guns 7 | . 5 2 Cannons 4 | . . 4 Classes Destroyed 5 | . 2 3 Recycler 1 | . . 1 Watcher 4 | . 2 2 Swarmer 5 | . 5 . Grunt 4 | . . 4 Sentry 2 | . . 2 Best Kill Streak 7 | . 7 4 Combat Bots Only 5 | . 5 3 Max Kills in Single Turn 2 | . 2 2 Gunslinging 1 | . 1 . Exploded . | . . . Melee . | . . . Uniques/NPCs Destroyed . | . . . Combat | -11 -10 -9 -------- Run | Yrd Mat Mat Hostile Shots Fired 197 | . 38 159 Missed 38 | . 8 30 Damage Taken 1655 | . 191 1464 Core 465 | . 60 405 Absorbed by Shields . | . . . Ignored by Resistances 457 | . 60 397 Core Remaining (%) 88 | 100 76 . Volleys Fired 37 | . 12 25 Largest 2 | . 2 2 Hottest 135 | . 40 135 Shots Fired 71 | . 24 47 Gun 50 | . 24 26 Cannon 21 | . . 21 Launcher . | . . . Special . | . . . Kinetic 50 | . 24 26 Thermal 21 | . . 21 Explosive . | . . . Electromagnetic . | . . . Robot Hit Streak 9 | . 7 9 Robot Miss Streak 2 | . 2 2 Penetration Max . | . . . Secondary Targets 1 | . 1 . Max Gunslinging Chain 1 | . 1 . Shots Hit Robots 48 | . 14 34 Core Hits 27 | . 10 17 Critical Kills . | . . . Critical Parts Destroyed 1 | . 1 . Critical Strikes 1 | . 1 . Destroy 1 | . 1 . Melee Attacks . | . . . Impact . | . . . Slashing . | . . . Piercing . | . . . Sneak Attacks . | . . . Combat Hostiles . | . . . Follow-up Attacks . | . . . Damage Inflicted 733 | . 146 587 Guns 335 | . 146 189 Cannons 398 | . . 398 Explosions . | . . . Melee . | . . . Ramming . | . . . Kinetic 335 | . 146 189 Thermal 398 | . . 398 Explosive . | . . . Electromagnetic . | . . . Impact . | . . . Slashing . | . . . Piercing . | . . . Highest Corruption . | . . . Average Corruption . | . . . Corruption Purged . | . . . Corruption Blocked . | . . . Overload Shots . | . . . Overflow Damage . | . . . Projectiles . | . . . Explosions . | . . . Melee . | . . . Knockbacks . | . . . Impact . | . . . Kinetic . | . . . Secondary . | . . . Self-Inflicted Damage . | . . . Shots . | . . . Rammed . | . . . Targets Rammed . | . . . Kicked . | . . . Crushed . | . . . Highest Temperature 628 | . . 628 Average Temperature 309 | . . 309 Received Heat Transfer 891 | . . 891 Effects 21 | . . 21 Shutdowns 4 | . . 4 Energy Bleed 3 | . . 3 Interference 3 | . . 3 Matter Decay 4 | . . 4 Short Circuit 4 | . . 4 Damage (minor) 1 | . . 1 Damage (core) 2 | . . 2 Siege Activations . | . . . Robots Corrupted . | . . . Combat Hostiles . | . . . Parts Fried . | . . . Impact Corruptions . | . . . Robots Melted . | . . . Combat Hostiles . | . . . Parts Melted 2 | . . 2 Heat Transferred 666 | . . 666 Parts Sabotaged . | . . . Parts Stolen . | . . . Parts Stripped . | . . . Power Chain Reactions . | . . . Alert | -11 -10 -9 ------- Run | Yrd Mat Mat Peak Influence 256 | . 169 256 Initial 60 | . . 60 Average 109 | . 57 154 Maximum Alert Level 1 | . . 1 Low Security (%) 79 | 100 100 64 Level 1 20 | . . 35 Level 2 . | . . . Level 3 . | . . . Level 4 . | . . . Level 5 . | . . . High Security . | . . . Max Security . | . . . Squads Dispatched 1 | . . 1 Investigation . | . . . Extermination . | . . . Reinforcement 1 | . . 1 Assault . | . . . Garrison . | . . . Intercept . | . . . Searches Triggered . | . . . Construction Impeded . | . . . Haulers Reinforced . | . . . Active Scanning Responses . | . . . Cargo Convoy Interrupts . | . . . Stealth | -11 -10 -9 --------- Run | Yrd Mat Mat Distress Signals 1 | . 1 . Communications Jammed . | . . . Distress Signals . | . . . Times Spotted 21 | . 9 12 Peak Tracking Total 5 | . 5 5 Tactical Retreats . | . . . Traps | -11 -10 -9 ------- Run | Yrd Mat Mat Traps Triggered 1 | . . 1 Indirectly . | . . . Trap Hack Attempts . | . . . Triggered . | . . . Disarmed . | . . . Reprogrammed . | . . . Reused . | . . . Traps Extracted . | . . . Installed . | . . . Triggered . | . . . Machines | -11 -10 -9 ---------- Run | Yrd Mat Mat Machines Disabled . | . . . Max in Single Turn . | . . . Machines Repaired . | . . . Machines Dismantled . | . . . Machines Sabotaged . | . . . Overloaded Fab Kills . | . . . Hacking | -11 -10 -9 --------- Run | Yrd Mat Mat Machines Accessed 1 | . 1 . Terminals 1 | . 1 . Fabricators . | . . . Repair Stations . | . . . Recycling Units . | . . . Scanalyzers . | . . . Garrison Access . | . . . Total Hacks 2 | . 2 . Successful . | . . . Failed 2 | . 2 . Catastrophic . | . . . Database Lockouts . | . . . Manual . | . . . Terminals 2 | . 2 . Fabricators . | . . . Repair Stations . | . . . Recycling Units . | . . . Scanalyzers . | . . . Garrison Access . | . . . Terminal Hacks . | . . . Fabricator Hacks . | . . . Repair Station Hacks . | . . . Recycling Unit Hacks . | . . . Scanalyzer . | . . . Garrison Access Hacks . | . . . Unauthorized Hacks . | . . . Terminals . | . . . Fabricators . | . . . Repair Stations . | . . . Recycling Units . | . . . Scanalyzers . | . . . Garrison Access . | . . . Data Cores Recovered . | . . . Used . | . . . Hacking Detections 1 | . 1 . Full Trace Events . | . . . Feedback Events . | . . . Feedback Blocked . | . . . Robot Schematics Acquired . | . . . Robots Built . | . . . Authchips . | . . . Time . | . . . Total Robot Build Rating . | . . . Part Schematics Acquired . | . . . Parts Built . | . . . Authchips . | . . . Time . | . . . Total Part Build Rating . | . . . Parts Repaired . | . . . Time . | . . . Parts Recycled . | . . . Recycled Matter . | . . . Retrieved Matter . | . . . Retrieved Components . | . . . Parts Scanalyzed . | . . . Part Schematics Acquired . | . . . Parts Damaged . | . . . Bothacking | -11 -10 -9 ------------ Run | Yrd Mat Mat Used RIF Installer . | . . . Robots Hacked . | . . . Non-combat . | . . . Combat . | . . . Robot Hacks Applied . | . . . Relay Couplers Released . | . . . Fabnet Peak Effective % . | . . . Robots Rewired . | . . . Allies Hacked . | . . . Hacks Repelled . | . . . Allies | -11 -10 -9 -------- Run | Yrd Mat Mat Total Allies . | . . . Largest Group . | . . . Highest-Rated Group . | . . . Highest-Rated Ally . | . . . Total Orders . | . . . Ally Attacks . | . . . Total Damage . | . . . Kills . | . . . Allies Corrupted . | . . . Allies Melted . | . . . Intel | -11 -10 -9 ------- Run | Yrd Mat Mat Robot Analysis Total . | . . . Derelict Logs Recovered . | . . . Drone Launches . | . . . Drone Recoveries . | . . . Exploration | -11 -10 -9 ------------- Run | Yrd Mat Mat Turns Passed 592 | 45 203 344 Spaces Moved 425 | 39 185 201 Core 36 | 1 . 35 Treads 22 | . . 22 Legs . | . . . Wheels 367 | 38 185 144 Hover . | . . . Flight . | . . . Fastest Speed 50 | 50 90 90 Average Speed 104 | 89 90 120 Slowest Speed 350 | 100 90 350 Overloaded Moves . | . . . Propulsion Burnouts . | . . . Robots Hopped . | . . . Cave-ins Triggered . | . . . Exploration Rate (%) 16 | 3 27 20 Regions Visited 2 Branch Regions . Pre-discovered Areas . | . . . Known Exits Taken . | . . . Unknown Exits Taken 2 | 1 1 . Scrap Searched . | . . . Spaces Dug . | . . . Terrain Destroyed 2 | . . 2 Melee . | . . . Projectile 2 | . . 2 AOE . | . . . Terrain Rammed . | . . . Walls Destroyed . | . . . Machines Disabled . | . . . Actions | -11 -10 -9 --------- Run | Yrd Mat Mat Total 499 | 45 199 255 Wait . | . . . Move 423 | 38 184 201 Hop . | . . . Pick Up 13 | . 2 11 Fast Attach 10 | 6 . 4 Attach 6 | . 1 5 Detach 1 | . . 1 Swap 6 | 1 . 5 Drop 3 | . . 3 Fire 37 | . 12 25 Melee . | . . . Ram . | . . . Kick . | . . . Crush . | . . . Escape Stasis . | . . . Rewire . | . . . Trap . | . . . Miscellaneous . | . . . Route ------- -11/Scrapyard -10/Materials -9/Materials History --------- Turn | Location | Event 20 | -11/Scrapyard | Discovered new exit (range 16) 46 | -11/Scrapyard | Entered Materials 236 | -10/Materials | Discovered new exit (range 14) 249 | -10/Materials | Entered another Materials area 249 | -9/Materials | Evolved 2 slots: Utility x2 302 | -9/Materials | Build established: Mutant 513 | -9/Materials | Core integrity fell below 50% 545 | -9/Materials | Core integrity fell below 20% 573 | -9/Materials | Lost 8 parts (2p2n1u3w) 593 | -9/Materials | Destroyed by Y-45 Defender with Beam Rifle Last Messages --------------- K-01 Serf collects debris. U-05 Engineer builds a Wall. Power failure, Nuclear Core shutdown. K-01 Serf collects debris. Overheating: Energy bleed (-15). Acquired Lgt. Treads. K-01 Serf collects debris. Broken Imp. Treads destroyed. Critical hit (Burn: +37). K-01 Serf collects debris. Acquired Lgt. Treads. M-13 Machinist repairs G-47 Trooper. Acquired 2 matter. Nuclear Core destroyed. K-01 Serf collects debris. U-05 Engineer builds a Wall. K-01 Serf collects debris. Hvy. Particle Cannon destroyed. Acquired Beam Cannon. Critical hit (Burn: +37). Map ----- +----------------------------------------------------+ | ???? + """ """ """ """ #???????? | | ??????????""" """ """ """ ########? | | ???????????"" """ """ """ #! #? | | ??????????? # #? | | ??????????? # """#? | | ??????????? + """#? | | ????????????T"" # """#? | | ???????????"""" ! # #? | | ????????????##############! #########? | | ?????????????????????##### = #????????? | | ?????????????????????#]] * +????????? | | ?????????????????????# % #????????? | | ?????????????????????# * #????????? | | ?????????????????????# * #????????? | | ?????????????????????#!! #????????? | | ?????????????????????#!! #????????? | | ?????????????????????#####= #????????? | | ???????????????????????###% ###??????? | | ?????????############### *[ #??????? | | ?????????# !%[ % * #??????? | | ?????????# =%[!= % [ #??????? | | ######## !o #??????? | | "%" % ! #??????? | | ?????##### = #??????? | | ????????##"##+########## t k #??????? | | ????????# #?#####@#/#######???? | | ????????# #?# #???? | | ????????# """ """ #?# Y #???? | | ????????# """ """ #?# g #???? | | ????????# """ """ #?# """ """ ##??? | | ????????# #?# """ """ #??? | | ????????# ] #?# g""" """ ##??? | | ????????# #?# #???? | | ????????#+#########?# """ """ #???? | | ##### ########### """ """ #???? | | + "T" """ """ #???? | | ################# #???? | | ????????????????????###############???? | | ??????????????????????????????????????? | | ??????????????????????????????????????? | | ??????????????????????????????????????? | | ??????????????????????????????????????? | | ??????????????????????????????????????? | | ??????????????????????????????????????? | | ??????????????????????????????????????? | | ??????????????????????????????????????? | | ??????????????????????????????????????? | | ??????????????????????????????????????? | | ??????????????????????????????????????? | | ??????????????????????????????????????? | +----------------------------------------------------+ Best States ------------- Heat Dissipation 28 Energy Generation 14 Energy Capacity 250 Matter Stores 300 Matter Capacity 300 Sight Range 18 Robot Scan Range 14 Terrain Scan Density 10 Resistance: KI 20 Resistance: TH 20 Resistance: EX 20 Resistance: EM 20 Resistance: I 20 Resistance: S 20 Resistance: P 20 Evasion (%) 42 Recoil Reduction 2 Offensive Hacking 10 Item Schematics ----------------- None Robot Schematics ------------------ None Fabricated ------------ Nothing Alien Tech Used ----------------- None Achievements -------------- None Challenges ------------ None Game ------ Seed FortressDimensionalInverter Manual? 0 Play Time 00:09:45 Cumulative 31.0 hours Start 2024.04.10 @ 03:48:38 End 2024.04.10 @ 03:58:38 Sessions 1 Manual Loads 0 Difficulty Adventurer Special Mode None Game No. 62 Rogue 55 Adventurer 7 Explorer 0 Win Type - Total 0 Types 0/0/0/0/0/0/0/0/0 Lore% 6 Gallery% 21 Achievement% 9 Wizard Run 0 Options --------- Layout 0 ASCII 0 Keyboard 1 Movement Numpad Keybinds 0 Fullscreen 2 Font 18/SmallcapsGlow Map View 76x50 Zoom Use 0% Tactical HUD 0 Map Filters NONE Filters NONE Steam 1 RUN: c4c9a102-5391-4f54-99b9-562ec0128ab6